bitfinex-derivatives/quotes_BTCF0:USTF0_20210102
["timestamp","ask_amount","ask_price","bid_price","bid_amount"]
[1609595301240,0.03,31141.0,31078.0,3.14221949]
[1609595301640,0.03,31141.0,31079.0,0.00040551]
[1609595301841,0.03,31141.0,31079.0,0.23622584]
[1609595302641,0.03,31141.0,31084.0,2.91395861]
[1609595302842,0.03,31141.0,31139.0,0.18043158]
[1609595303442,0.03,31141.0,31140.0,0.03970781]
[1609595309052,0.2853,31157.0,31150.0,0.51764419]
[1609595309451,0.2853,31157.0,31151.0,0.03970795]
[1609595310854,0.2853,31157.0,31153.0,0.18043158]
[1609595311355,0.2853,31157.0,31154.0,0.03970467]
[1609595312859,0.18043158,31155.0,31154.0,0.03970467]
[1609595313059,0.2853,31157.0,31154.0,0.03970467]
[1609595315162,0.2815,31168.0,31154.0,0.03970467]
[1609595315564,0.58330037,31169.0,31154.0,0.03970467]
[1609595316865,0.58330037,31169.0,31168.0,0.18043158]
[1609595317265,0.58330037,31169.0,31168.0,0.22011982]
[1609595319068,0.58330037,31169.0,31168.0,0.18084078]
[1609595319268,0.58330037,31169.0,31168.0,0.0004092]
[1609595319470,1.03584809,31173.0,31168.0,0.0004092]
[1609595319471,0.18043158,31173.0,31168.0,0.0004092]
[1609595319669,0.18043158,31173.0,31151.0,0.03969158]
[1609595319870,0.34086158,31173.0,31169.0,0.00040923]
[1609595320270,0.34086158,31173.0,31152.0,0.00040921]
[1609595320470,0.34086158,31173.0,31151.0,0.03969156]
[1609595320672,0.34086158,31173.0,31153.0,0.00040921]
[1609595320870,0.16043,31173.0,31167.0,0.18043158]
[1609595321072,0.16043,31173.0,31152.0,0.00040921]
[1609595321271,0.16043,31173.0,31168.0,0.00040921]
[1609595321472,0.16043,31173.0,31153.0,0.00040921]
[1609595321873,0.16043,31173.0,31169.0,0.00040921]
[1609595322071,0.16043,31173.0,31151.0,0.03968984]
[1609595322271,0.16043,31173.0,31170.0,0.00040921]
[1609595322672,0.16043,31173.0,31152.0,0.00040921]
[1609595322871,0.16043,31173.0,31171.0,0.00040918]
[1609595323072,0.16043,31173.0,31153.0,0.00040918]
[1609595323372,0.16043,31173.0,31172.0,0.00040918]
[1609595323573,0.16043,31173.0,31154.0,0.00040918]
[1609595323875,0.16043,31173.0,31152.0,0.03927672]
[1609595323876,0.16043,31173.0,31172.0,0.00040918]
[1609595324278,0.16043,31173.0,31155.0,0.0004092]
[1609595324480,1.16043,31173.0,31172.0,0.0004092]
[1609595324678,1.16043,31173.0,31156.0,0.0004092]
[1609595324877,1.16043,31173.0,31165.0,0.18043158]
[1609595325078,1.16043,31173.0,31172.0,0.0004092]
[1609595325279,1.16043,31173.0,31166.0,0.03967995]
[1609595325481,1.16043,31173.0,31172.0,0.00040912]
[1609595325881,1.16043,31173.0,31167.0,0.00040912]
[1609595326081,1.16043,31173.0,31172.0,0.00040912]
[1609595326280,1.16043,31173.0,31168.0,0.00040909]
[1609595326680,0.16043,31173.0,31172.0,0.00040909]
[1609595326881,0.18043158,31173.0,31169.0,0.00040909]
[1609595327081,0.30309158,31173.0,31172.0,0.00040909]
[1609595327381,0.30309158,31173.0,31170.0,0.00040909]
[1609595327581,0.30309158,31173.0,31165.0,0.0396772]
[1609595327882,0.30309158,31173.0,31171.0,0.00040909]
[1609595328083,0.30309158,31173.0,31164.0,0.18043158]
[1609595328284,1.0,31172.0,31150.0,0.51764419]
[1609595328483,2.0,31172.0,31171.0,0.03926798]
[1609595328684,6.801,31172.0,31165.0,0.03967923]
[1609595328884,0.18043158,31166.0,31165.0,0.03967923]
[1609595329085,1.90423158,31166.0,31151.0,0.22011211]
[1609595329284,2.03142158,31166.0,31150.0,0.51764419]
[1609595329483,2.03142158,31166.0,31152.0,0.00040916]
[1609595329684,2.03142158,31166.0,31152.0,0.03968364]
[1609595329887,2.03142158,31166.0,31151.0,0.03968508]
[1609595330085,2.03142158,31166.0,31153.0,0.03968528]
[1609595330286,2.03142158,31166.0,31152.0,0.03968511]
[1609595330485,1.0,31157.0,31152.0,0.03968511]
[1609595330687,1.0,31156.0,31154.0,0.03968534]
[1609595330889,0.18043158,31155.0,31153.0,0.03968541]
[1609595331087,1.0,31154.0,31153.0,0.03968541]
[1609595331288,1.0,31154.0,31150.0,0.51764419]
[1609595331487,1.0,31154.0,31151.0,0.03968597]
[1609595332389,0.18043158,31155.0,31151.0,0.03968597]
[1609595333389,1.0,31162.0,31151.0,0.03968597]
[1609595333791,1.0,31161.0,31151.0,0.03968597]
[1609595334693,1.0,31164.0,31151.0,0.03968597]
[1609595334892,0.18043158,31152.0,31151.0,0.03968597]
[1609595335091,1.18043158,31152.0,31151.0,0.03968597]
[1609595335293,1.18043158,31152.0,31147.0,0.18043158]
[1609595335493,1.18043158,31152.0,31122.0,0.078553]
[1609595335695,0.02,31147.0,31122.0,0.078553]
[1609595336094,0.02,31147.0,31122.0,0.11824043]
[1609595336295,0.02,31147.0,31123.0,0.03968755]
[1609595336894,0.02,31147.0,31142.0,0.18043158]
[1609595337395,0.02,31147.0,31143.0,0.03968737]
[1609595338197,0.02,31147.0,31123.0,0.03968253]
[1609595338397,0.02,31147.0,31144.0,0.03968077]
[1609595338799,0.02,31147.0,31124.0,0.03968063]
[1609595338998,0.02,31147.0,31122.0,0.11824043]
[1609595338999,0.02,31147.0,31146.0,0.18043158]
[1609595339498,0.02,31147.0,31146.0,0.22011329]
[1609595340700,0.02,31147.0,31146.0,0.18043158]
[1609595340901,0.02,31147.0,31146.0,0.22010932]
[1609595342302,0.02,31147.0,31146.0,4.44835667]
[1609595342502,0.18043158,31164.0,31146.0,8.00008444]
[1609595342702,0.18043158,31164.0,31147.0,0.11820883]
[1609595342901,0.18043158,31164.0,31163.0,0.18043158]
[1609595343602,0.18043158,31164.0,31163.0,0.2201101]
[1609595343903,0.12719,31166.0,31163.0,0.2201101]
[1609595344101,1.0,31172.0,31163.0,0.2201101]
[1609595344302,1.0,31172.0,31164.0,0.03967401]
[1609595344902,1.0,31172.0,31168.0,0.18043158]
[1609595345101,1.0,31172.0,31164.0,0.03967401]
[1609595345400,1.0,31172.0,31152.0,0.03967246]
[1609595345801,1.0,31172.0,31165.0,0.03967192]
[1609595346002,1.5942,31172.0,31153.0,0.03967235]
[1609595346201,1.5942,31172.0,31152.0,0.03967347]
[1609595346400,1.0,31172.0,31152.0,0.03967347]
[1609595346603,1.0,31172.0,31154.0,0.03967484]
[1609595346801,1.0,31172.0,31153.0,0.03967505]
[1609595347002,1.0,31172.0,31161.0,1.6897816]
[1609595347401,1.0,31172.0,31169.0,0.03967629]
[1609595347602,0.80432869,31172.0,31162.0,0.03967613]
[1609595347801,0.80432869,31172.0,31170.0,0.03967621]
[1609595348110,0.80237197,31172.0,31161.0,0.11820951]
[1609595348304,0.80237197,31172.0,31171.0,0.03967597]
[1609595348713,1.36337197,31172.0,31160.0,1.68987332]
[1609595348908,0.18043158,31161.0,31160.0,1.68987332]
[1609595349107,0.18043158,31161.0,31159.0,1.68667355]
[1609595349505,0.18043158,31161.0,31160.0,0.03968103]
[1609595350707,0.18043158,31161.0,31159.0,0.25497355]
[1609595353811,0.18043158,31161.0,31148.0,1.85931195]
[1609595354311,0.18043158,31161.0,31152.0,0.03968214]
[1609595354511,0.18043158,31161.0,31152.0,0.17232]
[1609595354713,0.18043158,31161.0,31153.0,0.03968046]
[1609595354911,0.18043158,31154.0,31153.0,0.03968046]
[1609595356112,4.34872341,31162.0,31153.0,0.03968046]
[1609595356512,1.0,31154.0,31153.0,0.03968046]
[1609595356912,1.18043158,31154.0,31153.0,0.03968046]
[1609595358414,1.1784745,31154.0,31153.0,0.03968046]
[1609595358615,0.18043158,31154.0,31153.0,0.03968046]
[1609595362118,0.0963,31161.0,31153.0,0.03968046]
[1609595362517,4.4775,31174.0,31153.0,0.03968046]
[1609595362718,0.85662238,31187.0,31153.0,0.03968046]
[1609595362918,0.85662238,31187.0,31173.0,0.18043158]
[1609595363119,1.0,31174.0,31173.0,0.18043158]
[1609595363319,4.4964,31201.0,31173.0,0.18043158]
[1609595363320,1.0,31178.0,31173.0,0.18043158]
[1609595363518,1.0,31178.0,31173.0,0.22009747]
[1609595363721,1.0,31178.0,31174.0,0.03925528]
[1609595363930,1.0,31178.0,31174.0,0.03966424]
[1609595364821,1.0,31171.0,31166.0,0.99235684]
[1609595365019,1.0,31171.0,31170.0,0.18043158]
[1609595365419,1.0,31171.0,31170.0,0.22009424]
[1609595366020,0.70658081,31171.0,31170.0,0.22009424]
[1609595368126,0.51096965,31171.0,31170.0,0.22009424]
[1609595370328,0.50901394,31171.0,31170.0,0.22009424]
[1609595370730,0.11786976,31171.0,31170.0,2.06914842]
[1609595370929,0.0963,31176.0,31170.0,2.06914842]
[1609595371630,3.9552,31185.0,31171.0,0.03965544]
[1609595371830,3.9552,31185.0,31171.0,0.11814291]
[1609595372832,3.9552,31185.0,31174.0,1.8457113]
[1609595373031,3.9552,31185.0,31184.0,0.18043158]
[1609595373232,4.0513,31185.0,31184.0,0.33026158]
[1609595373430,3.9552,31185.0,31184.0,0.33026158]
[1609595373631,3.9552,31185.0,31184.0,0.36991405]
[1609595374433,4.0524,31185.0,31184.0,0.36991405]
[1609595374634,3.9552,31185.0,31184.0,0.36991405]
[1609595374836,4.9552,31185.0,31184.0,0.36991405]
[1609595375037,4.9552,31185.0,31184.0,0.33067034]
[1609595376138,5.052,31185.0,31184.0,0.33067034]
[1609595376338,4.9552,31185.0,31184.0,0.33067034]
[1609595376738,3.9552,31185.0,31184.0,0.33067034]
[1609595377939,4.0517,31185.0,31184.0,0.33067034]
[1609595378941,3.9552,31185.0,31184.0,0.33067034]
[1609595379140,0.18043158,31187.0,31184.0,0.33067034]
[1609595379541,0.18043158,31187.0,31185.0,0.00040876]
[1609595379940,0.18043158,31187.0,31185.0,0.0396502]
[1609595380339,1.0,31196.0,31185.0,0.0396502]
[1609595380542,0.9980446,31196.0,31185.0,0.0396502]
[1609595380740,0.2716,31201.0,31185.0,0.0396502]
[1609595380940,1.0,31209.0,31185.0,0.0396502]
[1609595381143,0.18043158,31206.0,31199.0,0.18043158]
[1609595381343,0.18043158,31206.0,31199.0,0.28651158]
[1609595381541,0.18043158,31206.0,31199.0,0.28692018]
[1609595381742,0.5055,31200.0,31199.0,0.28692018]
[1609595382341,1.0,31209.0,31199.0,0.32614446]
[1609595382742,1.0,31209.0,31200.0,0.03963077]
[1609595382942,1.0,31222.0,31200.0,0.03963077]
[1609595383143,5.0808,31220.0,31213.0,0.18043158]
[1609595383342,1.0,31219.0,31213.0,0.18043158]
[1609595383542,1.0,31219.0,31200.0,0.00040854]
[1609595383746,1.0,31227.0,31214.0,0.14956854]
[1609595383944,1.0,31226.0,31214.0,0.14916]
[1609595384346,1.0,31226.0,31215.0,0.00040851]
[1609595384745,0.0969,31225.0,31215.0,0.00040851]
[1609595385146,0.0969,31225.0,31224.0,0.18043158]
[1609595385348,0.10952,31229.0,31224.0,0.18043158]
[1609595385547,0.10952,31229.0,31224.0,0.18084004]
[1609595385849,0.10952,31229.0,31225.0,0.00040846]
[1609595386249,0.0966,31228.0,31225.0,0.00040846]
[1609595386451,0.10952,31229.0,31225.0,0.00040846]
[1609595387252,0.10952,31229.0,31228.0,0.18043158]
[1609595387451,0.20572,31229.0,31228.0,0.18043158]
[1609595387750,0.20572,31229.0,31228.0,0.18083997]
[1609595388150,0.20572,31229.0,31228.0,0.00040839]
[1609595388550,0.10952,31229.0,31215.0,0.00040839]
[1609595388752,0.2989,31231.0,31228.0,0.00040839]
[1609595389150,0.18043158,31229.0,31226.0,0.18043158]
[1609595389350,0.18043158,31229.0,31214.0,0.14916]
[1609595389550,0.18043158,31229.0,31227.0,0.00040838]
[1609595389950,0.18043158,31229.0,31216.0,0.13336]
[1609595390151,0.18043158,31229.0,31228.0,0.00040838]
[1609595390350,0.18043158,31229.0,31217.0,0.00040838]
[1609595390750,0.18043158,31229.0,31228.0,0.00040838]
[1609595390950,0.18043158,31229.0,31218.0,0.00040838]
[1609595391150,0.0961,31230.0,31228.0,0.00040838]
[1609595391551,0.0961,31230.0,31222.0,0.18043158]
[1609595391751,0.0961,31230.0,31229.0,0.00040834]
[1609595391951,0.0961,31230.0,31223.0,0.00040832]
[1609595392251,0.0961,31230.0,31229.0,0.00040832]
[1609595392550,0.0961,31230.0,31224.0,0.00040832]
[1609595392750,0.0961,31230.0,31229.0,0.00040832]
[1609595393151,0.27653158,31230.0,31229.0,0.18043158]
[1609595393351,0.27653158,31230.0,31229.0,0.1808399]
[1609595393953,0.18043158,31230.0,31229.0,0.1808399]
[1609595394152,0.10761,31232.0,31229.0,0.1808399]
[1609595394351,1.2898,31245.0,31229.0,0.18083986]
[1609595394754,1.2898,31245.0,31230.0,0.00040828]
[1609595394953,0.2898,31245.0,31230.0,0.00040828]
[1609595395154,0.18043158,31234.0,31230.0,0.00040828]
[1609595395553,0.32055158,31234.0,31230.0,0.00040828]
[1609595396353,0.14012,31234.0,31230.0,0.00040828]
[1609595397158,0.14012,31234.0,31233.0,0.18043158]
[1609595397573,0.14012,31234.0,31233.0,0.18083986]
[1609595397767,0.18043158,31236.0,31233.0,0.35360986]
[1609595398162,0.18043158,31236.0,31234.0,0.00040825]
[1609595398958,0.0947,31235.0,31234.0,0.00040825]
[1609595399365,0.6675,31235.0,31234.0,0.00040825]
[1609595400362,1.7648,31235.0,31234.0,0.00040825]
[1609595401362,0.7648,31235.0,31234.0,0.00040825]
[1609595401563,1.7648,31235.0,31234.0,0.00040825]
[1609595401964,1.6675,31235.0,31225.0,0.16196]
[1609595402162,1.0,31235.0,31225.0,0.16196]
[1609595402366,3.6492,31226.0,31225.0,0.16196]
[1609595402763,3.6492,31226.0,31225.0,0.16236838]
[1609595402963,3.6492,31226.0,31225.0,0.00040838]
[1609595403163,3.82963158,31226.0,31217.0,0.00040838]
[1609595403563,3.82963158,31226.0,31225.0,0.00040838]
[1609595403764,3.82963158,31226.0,31218.0,0.00040841]
[1609595403963,3.82963158,31226.0,31216.0,0.13336]
[1609595403964,0.0951,31225.0,31217.0,0.00040841]
[1609595404365,0.0951,31225.0,31219.0,0.00040839]
[1609595404570,3.82963158,31226.0,31218.0,0.00040839]
[1609595404766,3.82963158,31226.0,31220.0,0.00040839]
[1609595405166,0.18043158,31221.0,31219.0,0.00040841]
[1609595405367,0.7338,31220.0,31216.0,0.13336]
[1609595405568,0.7338,31220.0,31190.0,0.07840482]
[1609595405969,0.18043158,31221.0,31217.0,0.00040843]
[1609595406169,5.3323,31218.0,31195.0,0.03961975]
[1609595406370,0.18043158,31221.0,31218.0,0.00040843]
[1609595406670,0.18043158,31221.0,31196.0,0.00040843]
[1609595406871,4.7472,31217.0,31196.0,0.00040843]
[1609595407072,0.0961,31216.0,31195.0,0.03921132]
[1609595407272,6.0,31219.0,31201.0,0.18043158]
[1609595407471,4.3347,31218.0,31201.0,0.18043158]
[1609595407672,6.0,31219.0,31202.0,0.03962069]
[1609595407874,3.8865,31215.0,31202.0,0.03962069]
[1609595408874,1.0,31207.0,31202.0,0.03962069]
[1609595409273,1.0,31207.0,31206.0,0.18043158]
[1609595409874,1.0,31207.0,31206.0,0.22005204]
[1609595410374,1.0,31207.0,31206.0,0.22005202]
[1609595410674,1.0,31207.0,31206.0,0.22046045]
[1609595411175,1.86723158,31207.0,31206.0,0.04002887]
[1609595411376,1.18043158,31207.0,31206.0,0.04002887]
[1609595411776,1.18043158,31207.0,31206.0,0.00081685]
[1609595411976,1.18043158,31207.0,31206.0,0.04003936]
[1609595412278,1.18043158,31207.0,31206.0,0.00040842]
[1609595412476,1.18043158,31207.0,31206.0,0.00081698]
[1609595412675,1.18043158,31207.0,31206.0,0.04004056]
[1609595412878,6.18043158,31207.0,31206.0,0.00040842]
[1609595413076,6.17847672,31207.0,31206.0,0.04004585]
[1609595413277,6.17847672,31207.0,31206.0,0.00081703]
[1609595413677,6.17847672,31207.0,31206.0,0.04004193]
[1609595413877,6.17847672,31207.0,31206.0,0.00040842]
[1609595414077,6.17847672,31207.0,31206.0,0.04004016]
[1609595414477,6.17847672,31207.0,31206.0,0.00040842]
[1609595414677,6.17847672,31207.0,31206.0,0.04003451]
[1609595414880,0.17847672,31207.0,31206.0,0.00040842]
[1609595415178,0.17847672,31207.0,31206.0,0.22046163]
[1609595415480,0.17847672,31207.0,31206.0,0.18084]
[1609595415679,0.17847672,31207.0,31206.0,0.22045902]
[1609595416981,1.17847672,31207.0,31206.0,0.22045902]
[1609595418883,0.17847672,31207.0,31206.0,0.22045902]
[1609595420687,0.17847672,31207.0,31206.0,0.04002744]
[1609595421085,0.17847672,31207.0,31206.0,0.00081685]
[1609595421285,0.17847672,31207.0,31206.0,0.04003091]
[1609595421586,0.17847672,31207.0,31206.0,0.00040842]
[1609595421785,0.17847672,31207.0,31206.0,0.04002947]
[1609595422186,0.17847672,31207.0,31206.0,0.00040842]
[1609595422387,0.17847672,31207.0,31206.0,0.04002875]
[1609595422586,0.17847672,31207.0,31206.0,0.00040842]
[1609595422885,1.17847672,31207.0,31206.0,0.04002681]
[1609595423188,0.98307745,31207.0,31206.0,0.00040842]
[1609595423386,1.16350903,31207.0,31206.0,0.22045777]
[1609595423586,1.18043158,31207.0,31206.0,0.22045777]
[1609595423786,1.17043158,31207.0,31206.0,0.22045777]
[1609595424788,2.17043158,31207.0,31206.0,0.22045777]
[1609595425490,2.16043158,31207.0,31206.0,0.22045777]
[1609595426796,1.86733372,31207.0,31206.0,0.22045777]
[1609595427194,1.86733372,31207.0,31206.0,0.22004935]
[1609595427594,0.85733372,31207.0,31206.0,0.22004935]
[1609595428596,0.85733372,31207.0,31206.0,0.03961777]
[1609595428996,0.85733372,31207.0,31202.0,0.03962804]
[1609595429399,0.84733372,31207.0,31206.0,0.03962764]
[1609595429598,0.84537942,31207.0,31203.0,0.03962766]
[1609595429799,0.84537942,31207.0,31206.0,0.03962783]
[1609595430198,0.84537942,31207.0,31204.0,0.03962776]
[1609595430398,0.84537942,31207.0,31206.0,0.03962808]
[1609595430598,0.84537942,31207.0,31202.0,0.03963006]
[1609595430898,0.84537942,31207.0,31206.0,0.03962996]
[1609595431098,0.84537942,31207.0,31203.0,0.03962961]
[1609595431397,0.7417,31203.0,31202.0,0.22006153]
[1609595431601,0.54627293,31203.0,31202.0,0.22006153]
[1609595431800,1.18043158,31204.0,31202.0,0.18043158]
[1609595432003,1.18043158,31204.0,31202.0,0.22006196]
[1609595432200,1.18043158,31204.0,31203.0,0.03962963]
[1609595432609,1.0,31204.0,31203.0,0.03962963]
[1609595432802,5.4091,31204.0,31203.0,0.03962963]
[1609595433409,5.58953158,31204.0,31203.0,0.03962963]
[1609595433602,4.58953158,31204.0,31203.0,0.03962963]
[1609595434305,5.58953158,31204.0,31203.0,0.03962963]
[1609595434907,1.18043158,31204.0,31203.0,0.03962963]
[1609595435608,2.18043158,31204.0,31203.0,0.03962963]
[1609595435908,2.18043158,31204.0,31202.0,0.03963309]
[1609595436311,2.18043158,31204.0,31203.0,0.03963326]
[1609595436509,6.48333158,31204.0,31203.0,0.03963326]
[1609595436710,6.48333158,31204.0,31203.0,0.0396336]
[1609595436910,6.48333158,31204.0,31189.0,0.92812874]
[1609595437312,6.48333158,31204.0,31190.0,0.0396336]
[1609595437510,0.18043158,31196.0,31195.0,0.18043158]
[1609595437710,1.84773158,31196.0,31195.0,0.18043158]
[1609595437912,1.84773158,31196.0,31195.0,0.22006523]
[1609595439314,1.84773158,31196.0,31195.0,0.03963365]
[1609595439515,2.84773158,31196.0,31195.0,0.03963365]
[1609595439713,2.84773158,31196.0,31191.0,0.03964219]
[1609595439915,2.18043158,31196.0,31195.0,0.03964197]
[1609595440115,6.57293158,31196.0,31195.0,0.03964197]
[1609595440317,6.57293158,31196.0,31192.0,0.03964265]
[1609595440515,6.57293158,31196.0,31195.0,0.03964013]
[1609595440716,6.57293158,31196.0,31193.0,0.03964013]
[1609595441017,6.57293158,31196.0,31195.0,0.03964018]
[1609595441218,6.57293158,31196.0,31191.0,0.03963982]
[1609595441418,0.18043158,31192.0,31191.0,0.03963982]
[1609595441619,0.98494251,31192.0,31190.0,0.33633158]
[1609595441820,0.98494251,31192.0,31191.0,0.03964033]
[1609595442723,0.98494251,31195.0,31191.0,0.03964033]
[1609595443421,0.98494251,31195.0,31194.0,0.18043158]
[1609595443923,0.98494251,31195.0,31194.0,0.22007072]
[1609595445123,0.69182492,31195.0,31194.0,0.22007072]
[1609595445326,0.69182492,31198.0,31194.0,0.22007072]
[1609595445823,0.69182492,31198.0,31195.0,0.0396259]
[1609595446525,0.69182492,31198.0,31196.0,0.03921209]
[1609595446724,0.69182492,31198.0,31196.0,0.03962511]
[1609595446925,0.69182492,31198.0,31195.0,0.03962626]
[1609595447127,0.69182492,31198.0,31197.0,0.03962561]
[1609595447527,0.69182492,31198.0,31197.0,0.16264]
[1609595447727,0.69182492,31198.0,31197.0,0.2022663]
[1609595447929,5.24612218,31198.0,31197.0,0.2022663]
[1609595448826,1.0,31197.0,31194.0,2.84173893]
[1609595449227,0.5,31197.0,31195.0,0.03962826]
[1609595449527,0.5,31197.0,31196.0,0.18043158]
[1609595449728,0.30459027,31197.0,31196.0,0.18043158]
[1609595450127,0.30459027,31197.0,31196.0,0.22005881]
[1609595450329,0.30459027,31197.0,31196.0,0.29848238]
[1609595450531,0.01149306,31197.0,31196.0,0.29848238]
[1609595452532,0.30102218,31209.0,31196.0,1.9631538]
[1609595452933,0.30102218,31209.0,31197.0,0.11805184]
[1609595453333,0.30102218,31209.0,31197.0,0.24395184]
[1609595453532,1.0,31200.0,31197.0,0.24395184]
[1609595453733,0.30102218,31199.0,31198.0,0.0396269]
[1609595453934,0.29906813,31199.0,31198.0,0.0396269]
[1609595455538,0.29906813,31199.0,31198.0,0.22005848]
[1609595458241,0.00599815,31199.0,31198.0,0.22005848]
[1609595458743,0.80461979,31200.0,31198.0,0.22005848]
[1609595459044,0.00599815,31203.0,31199.0,0.03961837]
[1609595459243,1.0,31200.0,31199.0,0.03961837]
[1609595460444,0.0066,31200.0,31199.0,0.03961837]
[1609595460645,0.18043158,31217.0,31199.0,0.03961837]
[1609595461046,4.4371,31227.0,31199.0,0.03961837]
[1609595461348,4.4371,31227.0,31199.0,5.45703489]
[1609595461544,0.18043158,31224.0,31217.0,0.18043158]
[1609595461744,0.18043158,31224.0,31217.0,0.31290158]
[1609595461945,0.18043158,31224.0,31217.0,0.35249933]
[1609595462545,1.0,31223.0,31217.0,0.35249933]
[1609595463545,0.18043158,31224.0,31217.0,0.35249933]
[1609595464147,0.18043158,31224.0,31217.0,1.98666625]
[1609595464148,0.16724454,31224.0,31217.0,1.98666625]
[1609595464648,0.16724454,31224.0,31218.0,0.03959242]
[1609595465148,0.16724454,31224.0,31218.0,0.11795186]
[1609595465549,0.16724454,31224.0,31223.0,0.18043158]
[1609595465949,0.16529209,31224.0,31223.0,0.2200238]
[1609595466751,1.0,31230.0,31223.0,0.2200238]
[1609595466950,1.0,31229.0,31223.0,0.2200238]
[1609595467252,1.0,31229.0,31224.0,0.03959084]
[1609595467451,1.0,31229.0,31224.0,0.17745084]
[1609595467652,0.80476004,31229.0,31228.0,0.18043158]
[1609595468052,0.80476004,31229.0,31228.0,0.22002276]
[1609595468252,0.18043158,31230.0,31228.0,0.22002276]
[1609595468453,0.98519162,31230.0,31228.0,0.22002276]
[1609595468653,0.98519162,31230.0,31229.0,0.03959054]
[1609595469454,0.18043158,31230.0,31229.0,0.03959054]
[1609595469655,0.98519162,31230.0,31229.0,0.03959054]
[1609595469852,5.44529162,31230.0,31229.0,0.03959054]
[1609595470454,0.98519162,31230.0,31229.0,0.03959054]
[1609595471053,0.98519162,31230.0,31225.0,0.03959179]
[1609595471253,0.98519162,31230.0,31229.0,0.03959312]
[1609595471654,0.98519162,31230.0,31226.0,0.03959475]
[1609595471859,0.98519162,31230.0,31229.0,0.00041275]
[1609595472054,0.98519162,31230.0,31227.0,0.0395972]
[1609595472255,5.2496,31228.0,31227.0,0.0395972]
[1609595472455,6.05436004,31228.0,31225.0,0.03918488]
[1609595472655,6.05436004,31228.0,31217.0,0.13247]
[1609595472856,6.05436004,31228.0,31225.0,0.03959634]
[1609595473258,6.05436004,31228.0,31221.0,0.11231]
[1609595473459,6.05436004,31228.0,31226.0,0.0395977]
[1609595473658,6.05436004,31228.0,31222.0,0.03960004]
[1609595473858,0.80476004,31228.0,31222.0,0.03960004]
[1609595474058,5.0962,31223.0,31221.0,0.11231]
[1609595474258,0.80476004,31222.0,31221.0,0.11231]
[1609595474458,0.80476004,31222.0,31221.0,0.15191201]
[1609595474659,1.80476004,31222.0,31221.0,0.15191201]
[1609595475661,1.98519162,31222.0,31221.0,0.15191201]
[1609595475861,1.98519162,31222.0,31214.0,1.63224949]
[1609595476462,1.98519162,31222.0,31215.0,0.03960736]
[1609595476663,0.98323824,31222.0,31215.0,0.03960736]
[1609595476862,0.98323824,31222.0,31214.0,0.1352]
[1609595477162,0.98323824,31222.0,31216.0,0.03960619]
[1609595477362,0.98323824,31222.0,31217.0,0.00041285]
[1609595477562,4.69193158,31218.0,31214.0,0.1352]
[1609595477764,0.80280666,31217.0,31214.0,0.1352]
[1609595477963,0.80280666,31217.0,31215.0,0.03960669]
[1609595478962,0.80280666,31217.0,31216.0,0.03960558]
[1609595479163,0.80280666,31217.0,31214.0,0.1352]
[1609595479363,0.80280666,31217.0,31216.0,0.03960591]
[1609595479562,0.80280666,31217.0,31215.0,0.03960587]
[1609595479763,0.80280666,31217.0,31216.0,0.03960597]
[1609595480164,5.56900666,31217.0,31216.0,0.03960597]
[1609595480365,5.56900666,31217.0,31215.0,0.0396042]
[1609595480565,5.56900666,31217.0,31216.0,0.03960242]
[1609595481066,5.56900666,31217.0,31215.0,0.03959967]
[1609595481366,5.56900666,31217.0,31216.0,0.0396011]
[1609595481865,5.56900666,31217.0,31215.0,0.03960002]
[1609595482267,5.56900666,31217.0,31216.0,0.03959948]
[1609595482667,6.56900666,31217.0,31216.0,0.03960003]
[1609595482867,6.37371094,31217.0,31216.0,0.03960003]
[1609595483067,6.37371094,31217.0,31215.0,0.03959946]
[1609595483270,6.37371094,31217.0,31216.0,0.03959982]
[1609595483768,6.37371094,31217.0,31216.0,0.18043158]
[1609595483969,6.37371094,31217.0,31216.0,0.21961798]
[1609595484168,5.7662,31217.0,31216.0,0.22003076]
[1609595484369,1.0,31217.0,31216.0,0.22003076]
[1609595485269,1.679,31217.0,31216.0,0.22003076]
[1609595486069,2.679,31217.0,31216.0,0.03959918]
[1609595486471,2.679,31217.0,31214.0,0.1352]
[1609595486472,2.679,31217.0,31215.0,0.03959382]
[1609595486671,3.679,31217.0,31216.0,0.03959351]
[1609595487173,3.679,31217.0,31215.0,0.039594]
[1609595487372,2.679,31217.0,31215.0,0.039594]
[1609595487573,2.0,31217.0,31216.0,0.0395938]
[1609595487773,2.0,31217.0,31216.0,0.22002538]
[1609595488674,1.0,31217.0,31216.0,0.22002538]
[1609595488876,0.70710206,31217.0,31216.0,0.22002538]
[1609595496583,4.98,31222.0,31216.0,0.22002538]
[1609595496785,4.98,31222.0,31209.0,0.25621122]
[1609595497085,4.98,31222.0,31217.0,0.03958092]
[1609595497285,4.98,31222.0,31210.0,0.03957982]
[1609595497585,4.98,31222.0,31209.0,0.33454921]
[1609595497586,4.98,31222.0,31218.0,0.03958024]
[1609595497785,4.98,31222.0,31221.0,0.18043158]
[1609595497985,5.98,31222.0,31221.0,0.33172158]
[1609595498185,5.98,31222.0,31221.0,0.37130283]
[1609595498385,5.98,31222.0,31221.0,0.19087125]
[1609595498685,6.98,31222.0,31221.0,0.19087125]
[1609595500789,5.98,31222.0,31221.0,0.19087125]
[1609595502497,6.00804706,31222.0,31221.0,0.19087125]
[1609595502694,7.00804706,31222.0,31221.0,0.19087125]
[1609595504699,6.00804706,31222.0,31221.0,0.19087125]
[1609595504899,5.81276549,31222.0,31221.0,0.19087125]
[1609595506701,6.81276549,31222.0,31221.0,0.19087125]
[1609595512713,5.81276549,31222.0,31221.0,0.19087125]
[1609595513516,5.61748325,31222.0,31221.0,0.19087125]
[1609595513715,5.61748325,31222.0,31221.0,0.18087125]
[1609595514616,5.61553046,31222.0,31221.0,0.18087125]
[1609595514816,6.61553046,31222.0,31221.0,0.18087125]
[1609595518718,11.61553046,31222.0,31221.0,0.18087125]
[1609595521022,11.61553046,31222.0,31209.0,0.81576823]
[1609595521222,7.03,31222.0,31221.0,0.16177]
[1609595521825,11.8654,31222.0,31221.0,0.16177]
[1609595522724,6.8654,31222.0,31221.0,0.16177]
[1609595526432,6.8654,31222.0,31209.0,0.1771]
[1609595526932,6.8654,31222.0,31210.0,0.03958653]
[1609595527330,6.8654,31222.0,31210.0,0.17771653]
[1609595527631,2.03,31222.0,31211.0,0.03958886]
[1609595528034,4.6858787,31212.0,31211.0,0.03958886]
[1609595528232,5.6858787,31212.0,31211.0,0.03958886]
[1609595531634,0.1784787,31212.0,31211.0,0.03958886]
[1609595531834,1.03,31222.0,31211.0,0.03958886]
[1609595532036,1.03,31222.0,31221.0,0.18043158]